bitfinex/quotes_ETHUSD_20240729
["timestamp","ask_amount","ask_price","bid_price","bid_amount"]
[1722279689868,3.01495,3316.8,3316.0,3.01566]
[1722279690628,3.01504,3316.7,3316.0,3.01566]
[1722279690773,3.01492,3316.9,3316.0,3.01566]
[1722279690984,0.60297,3316.8,3316.0,3.01566]
[1722279691171,0.60297,3316.8,3316.1,3.01557]
[1722279691714,0.60297,3316.8,3316.2,3.01546]
[1722279691919,4.27616465,3317.2,3316.2,3.01546]
[1722279692090,3.01462,3317.2,3316.5,3.01522]
[1722279692910,3.01468,3317.1,3316.3,3.01533]
[1722279693118,3.01478,3317.0,3316.3,3.01533]
[1722279693316,3.542742,3317.1,3316.0,6.0313]
[1722279693317,3.01487,3316.9,3316.0,6.0313]
[1722279693486,3.01495,3316.8,3316.1,3.01558]
[1722279693688,6.046062,3316.7,3315.8,5.29448]
[1722279693921,3.01514,3316.6,3315.9,3.0]
[1722279694168,3.01523,3316.5,3315.8,3.01578]
[1722279694418,3.01523,3316.5,3315.7,3.01594]
[1722279694978,6.046062,3316.7,3315.8,3.01582]
[1722279695214,3.030982,3316.7,3315.8,3.01582]
[1722279695421,3.030982,3316.7,3316.1,3.01558]
[1722279695822,3.030982,3316.7,3315.9,3.01571]
[1722279695980,3.030982,3316.7,3316.0,3.01566]
[1722279696184,2.428,3316.7,3316.0,3.01566]
[1722279696381,2.428,3316.7,3316.0,3.01562]
[1722279697312,2.428,3316.7,3315.5,0.3019]
[1722279697313,2.428,3316.7,3316.1,3.01559]
[1722279698624,2.428,3316.7,3315.9,6.03147]
[1722279698786,2.428,3316.7,3315.9,3.0157]
[1722279698984,2.428,3316.7,3316.0,3.01567]
[1722279699418,5.987335,3316.7,3316.0,3.01567]
[1722279699786,5.987335,3316.7,3315.8,3.01579]
[1722279699980,3.01515,3316.6,3315.8,3.01579]
[1722279700798,2.972295,3316.7,3315.9,3.01571]
[1722279701123,2.972295,3316.7,3316.1,3.01552]
[1722279701589,2.972295,3316.7,3316.2,3.01549]
[1722279701809,2.428,3316.7,3316.2,3.01549]
[1722279702047,3.0148,3317.0,3316.0,3.01564]
[1722279702231,3.0148,3317.0,3316.2,3.01545]
[1722279702762,3.0148,3317.0,3316.1,3.01553]
[1722279703045,3.01486,3316.9,3316.1,3.01553]
[1722279703248,3.01496,3316.8,3316.1,3.01553]
[1722279703437,3.01496,3316.8,3315.9,3.01573]
[1722279703438,2.2829,3316.7,3315.9,3.0157]
[1722279703606,2.2829,3316.7,3316.0,3.01562]
[1722279703804,2.2829,3316.7,3316.1,3.01553]
[1722279704139,2.2829,3316.7,3316.0,3.01561]
[1722279704346,2.90299422,3316.7,3316.0,3.01561]
[1722279704752,3.01514,3316.6,3315.8,3.01579]
[1722279705102,2.90299422,3316.7,3315.6,3.01598]
[1722279705322,0.55,3316.6,3315.6,3.01598]
[1722279705744,3.01541,3316.3,3315.6,3.01598]
[1722279706313,3.01531,3316.5,3315.7,3.01594]
[1722279707026,3.56513,3316.6,3315.7,3.01594]
[1722279707220,3.56513,3316.6,3315.5,0.3019]
[1722279707221,0.55,3316.6,3315.9,3.01576]
[1722279707415,0.55,3316.6,3316.0,3.01566]
[1722279707621,0.55,3316.6,3315.9,3.01576]
[1722279708835,3.56519,3316.6,3315.9,3.01576]
[1722279709039,0.886314,3316.5,3315.9,3.01576]
[1722279709874,2.2829,3316.7,3316.1,3.01556]
[1722279710466,2.2829,3316.7,3315.9,6.03145]
[1722279710661,3.01513,3316.6,3315.9,3.01569]
[1722279711533,0.55,3316.5,3315.7,3.01591]
[1722279712162,3.01537,3316.4,3315.7,3.01591]
[1722279712385,2.4712,3316.3,3315.1,2.3972]
[1722279712675,3.01587,3315.8,3315.1,3.01644]
[1722279713000,5.48715,3315.7,3314.9,3.01661]
[1722279713390,5.48715,3315.7,3315.0,3.01658]
[1722279713969,5.48715,3315.7,3314.8,3.0167]
[1722279713970,3.01605,3315.6,3314.8,3.0167]
[1722279714332,5.48715,3315.7,3314.8,3.0167]
[1722279714538,3.01617,3315.5,3314.8,3.0167]
[1722279714737,3.866502,3315.5,3314.8,3.0167]
[1722279716282,0.850332,3315.5,3314.8,3.0167]
[1722279716640,2.4712,3315.7,3314.8,3.0167]
[1722279716866,2.4712,3315.7,3314.3,2.3972]
[1722279716867,2.4712,3315.7,3315.2,3.0164]
[1722279717280,2.4712,3316.1,3315.5,3.01607]
[1722279717482,0.55,3316.0,3315.5,3.01607]
[1722279717822,0.55,3316.0,3315.4,3.01616]
[1722279718266,0.55,3316.0,3315.5,3.01613]
[1722279718471,0.55,3316.0,3315.4,3.01616]
[1722279719009,0.55,3316.0,3315.6,3.01601]
[1722279720077,0.55,3316.0,3315.4,3.01616]
[1722279720489,0.55,3316.0,3315.5,3.01613]
[1722279720673,0.55,3316.0,3315.4,3.01616]
[1722279721008,1.45523,3316.0,3315.5,3.01613]
[1722279721163,1.45523,3316.0,3315.3,3.01623]
[1722279721366,1.45523,3316.0,3314.9,2.3972]
[1722279721367,1.45523,3316.0,3315.4,3.01616]
[1722279721617,1.45523,3316.0,3315.5,3.01606]
[1722279721773,1.45523,3316.0,3314.9,5.41383]
[1722279721774,3.0,3316.4,3315.8,3.01585]
[1722279721975,0.55,3316.3,3315.8,3.01585]
[1722279722203,3.56532,3316.4,3315.6,3.01597]
[1722279722390,3.01542,3316.3,3315.6,3.01597]
[1722279722776,3.0155,3316.2,3315.4,3.0162]
[1722279722995,3.37205,3316.2,3315.5,3.01613]
[1722279723303,2.4587,3316.1,3315.5,3.01613]
[1722279723481,5.96172,3316.4,3315.7,3.01589]
[1722279723667,3.01541,3316.3,3315.5,3.01606]
[1722279723867,3.913223,3316.2,3315.1,3.01646]
[1722279724111,3.913223,3316.2,3315.3,3.0163]
[1722279724112,2.3964,3315.9,3315.3,3.0163]
[1722279724325,2.3964,3315.9,3315.1,3.01642]
[1722279724536,2.3964,3315.9,3315.2,3.01636]
[1722279725123,2.3964,3315.9,3315.3,3.01631]
[1722279725729,0.55,3316.1,3315.5,3.01607]
[1722279726933,0.595681,3316.1,3315.5,3.01607]
[1722279727931,0.595681,3316.1,3315.3,3.01631]
[1722279728239,3.611281,3316.1,3315.3,3.01631]
[1722279728594,3.611281,3316.1,3315.3,6.03254]
[1722279728792,3.611281,3316.1,3315.4,3.01621]
[1722279728995,0.6002581,3316.0,3315.4,3.01621]
[1722279729421,0.6002581,3316.0,3315.3,3.01623]
[1722279729422,2.3913,3316.2,3315.5,3.0161]
[1722279729617,2.3913,3316.2,3315.3,3.01626]
[1722279729931,2.3913,3316.2,3315.5,3.01605]
[1722279730240,3.01578,3315.9,3315.2,3.01638]
[1722279730406,0.301578,3315.8,3315.2,3.01638]
[1722279730620,3.01578,3315.9,3315.2,3.01638]
[1722279731642,1.80856588,3316.1,3315.3,3.01624]
[1722279731643,3.01568,3316.0,3315.3,3.01624]
[1722279731942,0.55,3315.9,3315.4,3.01621]
[1722279732102,3.01569,3316.0,3315.2,3.01633]
[1722279732518,0.55,3315.9,3315.2,3.01633]
[1722279732719,0.55,3315.9,3315.4,3.01622]
[1722279733046,3.64986588,3316.2,3315.5,3.01609]
[1722279733344,0.69841492,3316.1,3315.5,3.01609]
[1722279733547,1.9569808,3316.1,3315.5,3.01609]
[1722279733850,0.69841492,3316.1,3315.5,3.01609]
[1722279734049,3.71402492,3316.1,3315.3,3.01626]
[1722279734258,4.9725908,3316.1,3315.3,3.01626]
[1722279734760,0.32742972,3316.0,3315.3,3.01626]
[1722279735119,1.5859956,3316.0,3315.3,3.01626]
[1722279735322,4.6016756,3316.0,3315.3,3.01626]
[1722279736145,1.25856588,3315.9,3315.2,3.01636]
[1722279737023,1.25856588,3315.9,3315.2,3.01632]
[1722279737354,1.25856588,3315.9,3315.3,3.01629]
[1722279738853,1.25856588,3315.8,3315.0,3.01654]
[1722279739054,1.25856588,3315.8,3315.1,3.01643]
[1722279739055,4.27443588,3315.8,3315.1,3.01643]
[1722279739208,3.50986588,3315.7,3315.1,3.01643]
[1722279739631,3.50986588,3315.7,3315.2,3.0164]
[1722279740247,3.50986588,3315.7,3314.8,3.01669]
[1722279740411,1.25856588,3315.5,3314.8,3.01669]
[1722279740609,4.27469588,3315.5,3314.8,3.01669]
[1722279741961,4.27469588,3315.5,3314.2,5.32153]
[1722279741962,3.01646,3315.2,3314.5,3.01704]
[1722279742863,1.25856588,3315.1,3314.5,3.01704]
[1722279743154,1.25856588,3315.1,3314.3,3.01715]
[1722279743676,5.35819,3315.0,3314.3,3.01721]
[1722279743806,5.35819,3315.0,3314.0,3.01746]
[1722279744013,3.01668,3314.9,3314.2,3.01731]
[1722279744957,3.01668,3314.9,3313.6,3.01785]
[1722279744958,3.01741,3314.1,3313.3,3.01808]
[1722279745108,3.01741,3314.1,3313.2,3.0182]
[1722279745109,2.492,3314.0,3313.2,3.0182]
[1722279745308,2.492,3314.0,3313.1,3.32058]
[1722279745309,3.01765,3313.9,3313.1,3.32061]
[1722279745542,2.492,3314.0,3313.1,3.32061]
[1722279745543,3.01768,3313.8,3313.1,3.32061]
[1722279745809,5.5095,3314.0,3313.1,0.99656588]
[1722279745810,2.492,3314.0,3313.1,0.99656588]
[1722279746025,1.5362162,3313.9,3313.6,3.01786]
[1722279746257,13.043,3314.8,3313.6,0.06035477]
[1722279746258,8.62856588,3314.8,3313.6,0.06035477]
[1722279746422,3.01696,3314.6,3313.9,3.01752]
[1722279746625,1.53600821,3314.5,3313.8,3.01761]
[1722279746850,1.53600821,3314.4,3314.0,3.01747]
[1722279747052,3.01679,3314.8,3314.0,3.01747]
[1722279747385,1.53596714,3314.7,3314.1,3.0174]
[1722279747551,4.47078635,3314.9,3313.9,0.06034729]
[1722279747552,1.53596714,3314.6,3314.4,3.01708]
[1722279747747,2.492,3314.9,3314.4,3.01708]
[1722279747947,1.53587873,3314.8,3314.2,3.01724]
[1722279748457,1.53587873,3314.8,3314.4,3.01713]
[1722279748761,1.53587873,3314.8,3314.3,3.01722]
[1722279748963,1.53587873,3314.8,3314.4,3.01711]
[1722279749450,1.53587873,3314.8,3314.0,2.3333]
[1722279749650,1.53587873,3314.8,3314.3,3.01722]
[1722279750261,1.53587873,3314.8,3314.4,3.01713]
[1722279750459,1.53587873,3314.8,3314.2,3.01725]
[1722279750978,4.55264873,3314.8,3314.0,5.35079]
[1722279751143,4.55264873,3314.8,3314.0,3.01749]
[1722279751144,1.53587873,3314.7,3314.0,3.01749]
[1722279751340,2.2403436,3314.7,3313.9,3.01759]
[1722279751581,1.53587873,3314.6,3313.9,3.01759]
[1722279751748,3.01705,3314.5,3313.7,3.01773]
[1722279751939,3.01723,3314.3,3313.6,3.01783]
[1722279752181,1.53587873,3314.2,3313.6,3.01783]
[1722279752393,1.53587873,3314.2,3313.7,3.01775]
[1722279752694,6.05692487,3314.7,3313.8,3.01761]
[1722279752840,2.26774502,3314.6,3314.1,3.01735]
[1722279753046,1.5360217,3314.5,3314.1,3.01735]
[1722279753246,1.5360217,3314.5,3314.2,3.0173]
[1722279753784,0.73172332,3314.6,3314.2,3.0173]
[1722279754081,1.53592966,3314.5,3314.0,3.01742]
[1722279754274,1.53600905,3314.4,3313.8,3.01765]
[1722279754495,2.3356,3314.7,3313.9,3.01758]
[1722279754496,1.53607008,3314.3,3313.9,3.01758]
[1722279754661,2.3356,3314.7,3314.0,3.01743]
[1722279754862,1.76957165,3314.6,3314.0,3.01743]
[1722279755088,1.53601165,3314.5,3314.1,3.01739]
[1722279755307,1.53601165,3314.5,3313.9,3.01759]
[1722279757062,1.53601165,3314.5,3314.0,3.01749]
[1722279758791,4.55306165,3314.5,3313.7,3.01773]
[1722279758978,2.01467382,3314.4,3313.7,3.01773]
[1722279759189,1.53601165,3314.3,3313.7,3.01773]
[1722279759382,1.53601165,3314.3,3313.8,3.01767]
[1722279759566,0.23356,3314.6,3313.9,3.01753]
[1722279759767,1.53602557,3314.5,3313.9,3.01753]
[1722279760203,2.24823713,3314.5,3313.9,3.01753]
[1722279760369,1.53602557,3314.4,3313.9,3.01753]
[1722279761213,3.56723,3314.3,3313.6,3.01782]
[1722279761484,1.53602557,3314.2,3313.6,3.01782]
[1722279761927,0.23356,3314.6,3313.7,0.06035594]
[1722279762124,1.53607831,3314.5,3314.0,3.01746]
[1722279762349,2.3356,3314.7,3314.1,3.0174]
[1722279762577,1.53597593,3314.6,3314.1,3.0174]
[1722279763551,1.53597593,3314.6,3314.2,3.01731]
[1722279763755,1.53597593,3314.6,3314.0,3.01743]
[1722279764542,2.22481252,3314.6,3313.9,3.01758]
[1722279764707,2.22481252,3314.6,3313.8,3.01767]
[1722279764708,1.53597593,3314.5,3314.0,3.01749]
[1722279765507,1.53597593,3314.5,3314.1,3.01739]
[1722279765914,1.26030829,3315.0,3314.2,3.01725]
[1722279765915,5.49921,3315.0,3314.2,3.01725]
[1722279766113,6.02415593,3314.9,3314.2,3.01725]
[1722279766338,1.53598822,3314.8,3314.2,3.01725]
[1722279767162,4.55281822,3314.8,3314.0,3.01748]
[1722279767310,3.01696,3314.6,3313.8,3.01761]
[1722279767519,1.53598822,3314.5,3313.9,3.01753]
[1722279767709,3.01686,3314.7,3314.0,3.01749]
[1722279767910,1.53602626,3314.6,3313.8,3.0176]
[1722279768210,1.53602626,3314.6,3314.0,3.01749]
[1722279768367,2.09102256,3314.6,3314.0,3.01749]
[1722279768531,1.53602626,3314.5,3314.0,3.01749]
[1722279768934,2.4124,3314.4,3313.8,3.0176]
[1722279769497,1.5361255,3314.3,3313.8,3.0176]
[1722279770377,1.5361255,3314.3,3313.9,3.01758]
[1722279770666,0.5549963,3314.6,3314.0,3.01747]
[1722279770821,1.53600908,3314.5,3314.0,3.01747]
[1722279771017,6.46504338,3314.7,3314.0,3.01747]
[1722279771330,1.53599768,3314.6,3314.0,3.01747]
[1722279771832,4.55296768,3314.6,3313.8,6.0352]
[1722279772168,1.53599768,3314.5,3313.8,3.0176]
[1722279772837,1.53599768,3314.5,3313.4,5.3136]
[1722279772838,1.53599768,3314.5,3313.9,3.01758]
[1722279774290,4.55305768,3314.5,3313.4,5.3136]
[1722279774475,3.01748,3314.1,3313.4,3.018]
[1722279774793,3.01748,3314.1,3313.3,3.0]
[1722279774794,2.3236,3313.9,3313.3,3.01813]
[1722279775099,1.53624109,3313.8,3313.3,3.01813]
[1722279775278,2.3236,3313.9,3313.1,3.01824]
[1722279775595,1.53629064,3313.8,3313.2,3.01821]
[1722279775798,4.55397064,3313.8,3313.0,3.01837]
[1722279775956,3.01807,3313.4,3312.6,3.01869]
[1722279776156,2.2924,3313.3,3312.7,3.01868]
[1722279776396,2.2924,3313.3,3312.8,3.01859]
[1722279776703,2.2924,3313.3,3312.7,3.01867]
[1722279778561,2.2924,3313.3,3312.4,5.41852]
[1722279778562,5.31056,3313.3,3312.5,3.01883]
[1722279778763,3.851092,3313.2,3312.5,3.01883]
[1722279778964,3.851092,3313.2,3312.2,3.0191]
[1722279778965,4.55497658,3313.1,3312.2,3.0191]
[1722279779169,3.851092,3313.2,3311.7,2.6816]
[1722279779170,2.3117,3312.9,3311.7,2.6816]
[1722279779368,2.3117,3312.9,3312.0,3.01932]
[1722279779369,4.55540352,3312.8,3312.0,3.01932]
[1722279779589,4.55540352,3312.8,3311.7,2.6816]
[1722279779590,1.53681352,3312.7,3312.1,3.01923]
[1722279779794,2.22352387,3312.7,3312.1,3.01923]
[1722279779957,3.01895,3312.4,3311.3,3.01993]
[1722279780154,10.24784099,3312.4,3311.3,3.01993]
[1722279780389,10.24784099,3312.4,3311.2,3.02004]
[1722279780390,10.79784099,3312.4,3311.2,3.02004]
[1722279780550,14.36180903,3312.4,3311.3,3.01995]
[1722279780761,12.63226376,3312.4,3311.0,3.02023]
[1722279780954,17.95726107,3312.4,3310.8,3.02041]
[1722279781176,17.95726107,3312.4,3309.8,5.9966]
[1722279781177,3.02023,3311.0,3309.6,2.4381]
[1722279781370,3.01947,3311.9,3310.1,3.02103]
[1722279781371,5.30976,3311.1,3310.1,3.02103]
[1722279781599,3.02024,3311.0,3310.1,3.02103]
[1722279781895,3.02072,3310.5,3309.6,3.02142]
[1722279782099,3.02072,3310.5,3309.7,3.02141]
[1722279782278,3.203984,3311.0,3309.5,3.02159]
[1722279782279,1.5379268,3310.4,3309.5,3.02159]
[1722279782471,3.02053,3310.7,3309.6,3.02149]
[1722279782668,3.02053,3310.7,3309.5,0.302159]
[1722279782669,3.57061,3310.6,3309.7,3.02136]
[1722279782869,3.02073,3310.5,3309.1,2.4381]
[1722279783272,1.25656452,3311.8,3310.4,3.02075]
[1722279783508,0.43866219,3311.9,3309.2,3.08228921]
[1722279783509,9.6596,3311.7,3310.2,2.673]
[1722279783788,9.6596,3311.7,3310.1,3.02104]
[1722279783789,5.08756252,3311.6,3310.1,3.02104]
[1722279783974,5.08756252,3311.6,3310.1,3.02103]
[1722279783975,3.02023,3311.1,3310.1,3.02103]
[1722279784173,3.02056,3310.7,3309.7,3.02141]
[1722279784379,3.02056,3310.7,3309.8,3.02131]
[1722279784691,3.0,3311.1,3309.9,3.02123]
[1722279784692,3.02035,3310.9,3309.9,3.02123]
[1722279784917,3.0,3311.1,3309.6,3.02149]
[1722279784918,3.02068,3310.6,3309.6,3.02149]
[1722279785211,10.40375019,3310.8,3308.9,3.1693868]
[1722279785212,0.852068,3310.5,3309.7,3.02137]
[1722279785516,0.55,3310.5,3309.7,3.02137]
[1722279785720,0.55,3310.6,3309.6,3.02151]
[1722279785863,0.55,3310.7,3309.9,3.02121]
[1722279786072,1.081581,3310.7,3309.9,3.02121]
[1722279786276,4.102101,3310.7,3309.9,3.02121]
[1722279786475,1.081581,3310.7,3309.9,3.02121]
[1722279787563,0.531581,3310.7,3309.9,3.02121]
[1722279787815,2.2954,3310.8,3309.9,3.02121]
[1722279788113,2.2954,3310.8,3310.1,3.02103]
[1722279788668,2.2954,3310.8,3310.2,3.02094]
[1722279789781,2.2954,3310.8,3309.8,3.02131]
[1722279790091,3.02058,3310.7,3309.8,3.02131]
[1722279790298,0.531598,3310.6,3309.8,3.02131]
[1722279790611,0.531598,3310.6,3310.0,3.02114]
[1722279790811,2.2954,3310.8,3310.0,3.02114]
[1722279791181,5.31586,3310.8,3310.0,3.02114]
[1722279791515,5.31586,3310.8,3309.9,3.02122]
[1722279791873,3.02058,3310.7,3309.9,3.02122]
[1722279792067,2.2954,3310.8,3310.0,3.02114]
[1722279792273,0.531579,3310.7,3310.1,3.02104]
[1722279792616,0.531579,3310.7,3309.8,3.02132]
[1722279792914,0.531579,3310.7,3309.2,5.47637]
[1722279792915,2.4371,3311.5,3310.7,3.02049]
[1722279793410,2.4371,3311.5,3310.1,2.673]
[1722279793411,2.4371,3311.5,3310.6,3.02058]
[1722279793614,2.4371,3311.5,3310.5,3.02067]
[1722279793615,3.02002,3311.3,3310.5,3.02067]
[1722279793786,0.24371,3311.4,3309.9,3.0]
[1722279793987,0.24371,3311.4,3310.8,3.02041]
[1722279794208,3.24371,3311.4,3310.8,3.02041]
[1722279794412,3.24371,3311.4,3310.5,3.02068]
[1722279794686,3.24371,3311.4,3310.3,3.02086]
[1722279794687,0.568081,3311.3,3310.6,3.02059]
[1722279795500,0.568081,3311.3,3310.5,0.06041163]
[1722279795686,0.568081,3311.3,3310.6,3.02051]
[1722279795888,0.568081,3311.3,3311.0,3.02018]
[1722279796406,3.01952,3311.8,3311.0,3.02018]
[1722279796613,5.49808,3312.0,3310.9,3.0203]
[1722279796797,5.49808,3312.0,3311.2,3.01998]
[1722279796998,2.4787,3312.0,3311.2,3.01997]
[1722279797210,2.4787,3312.0,3311.3,3.01989]
[1722279797211,0.549799,3311.9,3311.3,3.01989]
[1722279797424,7.37,3312.2,3311.6,3.01966]
[1722279797625,2.4787,3312.5,3311.6,3.01966]
[1722279798130,2.4787,3312.5,3311.8,3.0195]
[1722279798324,3.01896,3312.4,3311.6,3.01966]
[1722279798825,2.4787,3312.5,3311.7,3.01958]
[1722279799028,2.4787,3312.5,3311.5,3.08015855]
[1722279799029,3.568714,3312.4,3311.5,6.09980855]
[1722279799202,0.549754,3312.4,3311.5,0.06038855]
[1722279799404,0.549754,3312.4,3311.9,3.0194]
[1722279799697,7.37,3312.9,3312.1,3.01917]
[1722279799698,10.38856,3312.9,3312.1,3.01917]
[1722279799903,3.0,3312.8,3312.1,3.01917]
[1722279800098,2.4787,3313.0,3312.0,0.06038375]
[1722279800329,2.4787,3313.0,3312.2,3.01907]
[1722279800501,0.549704,3312.9,3312.3,3.01901]
[1722279801332,3.0186,3312.8,3312.1,3.01917]
[1722279801648,3.0186,3312.8,3311.4,3.01979]
[1722279801649,3.01887,3312.5,3311.7,3.01953]
[1722279801791,0.301887,3312.4,3311.8,3.01948]
[1722279801997,3.01873,3312.7,3311.9,3.01935]
[1722279802195,2.4787,3313.0,3311.4,2.673]
[1722279802423,3.55,3312.9,3312.2,3.01913]
[1722279802958,2.4787,3313.0,3312.3,3.01904]
[1722279803248,2.4787,3313.0,3312.4,3.01894]
[1722279803249,0.24787,3312.9,3312.4,3.01894]
[1722279803449,3.26644,3312.9,3312.0,3.0193]
[1722279803798,0.24787,3312.9,3312.2,3.01912]
[1722279803999,3.291277,3312.8,3311.7,3.01951]
[1722279804237,3.291277,3312.8,3312.0,3.01931]
[1722279804436,3.291277,3312.8,3312.1,3.01922]
[1722279804620,0.272657,3312.8,3311.9,3.0194]
[1722279804804,0.272657,3312.8,3312.3,3.01904]
[1722279805752,0.272657,3312.8,3312.5,3.01884]
[1722279806055,5.35926,3313.5,3312.7,3.01868]
[1722279806352,3.01808,3313.4,3312.7,3.01868]
[1722279806709,3.0,3313.3,3312.7,3.01868]
[1722279807236,5.3413,3313.5,3312.2,3.01909]
[1722279807447,1.572916,3313.4,3312.7,3.01863]
[1722279807748,3.01816,3313.3,3312.5,3.0188]
[1722279808299,3.01815,3313.3,3312.3,3.01904]
[1722279808499,3.01815,3313.3,3312.4,3.01895]
[1722279808500,3.01833,3313.1,3312.4,3.01895]
[1722279808742,0.301833,3313.0,3312.4,3.01895]
[1722279809036,3.01815,3313.3,3312.4,3.01895]
[1722279809247,3.01825,3313.2,3312.4,3.01895]
[1722279809655,3.01833,3313.1,3312.4,3.01895]
[1722279810499,3.01833,3313.1,3312.2,3.01912]
[1722279810500,3.0185,3312.9,3312.2,3.01907]
[1722279811057,3.01833,3313.1,3312.2,3.01907]
[1722279811213,0.301833,3313.0,3312.2,3.01907]
[1722279811418,3.01856,3312.9,3312.0,3.01929]
[1722279811749,3.01868,3312.7,3311.9,3.01937]
[1722279812083,3.0191,3312.3,3311.0,5.1212]
[1722279812263,5.34297,3312.5,3311.8,3.01948]
[1722279812399,2.3241,3312.5,3311.8,3.01948]
[1722279812604,0.23241,3312.4,3311.8,3.01948]
[1722279816560,0.23241,3312.4,3312.0,3.01924]
[1722279816760,5.37551,3312.8,3312.0,3.01924]
[1722279816761,2.3569,3312.8,3312.0,3.01924]
[1722279816934,3.0,3312.9,3312.3,3.01898]
[1722279817468,3.0,3312.9,3312.4,3.01895]
[1722279817769,3.0,3312.9,3312.5,3.01882]
[1722279817955,1.037,3312.8,3312.6,3.01877]
[1722279818158,2.3569,3313.2,3312.6,3.01877]
[1722279818674,2.3569,3313.2,3312.7,3.01862]
[1722279819586,1.53666893,3313.1,3312.8,3.01857]
[1722279819738,1.572916,3313.4,3312.8,3.01857]
[1722279819939,1.572916,3313.4,3312.7,3.01862]
[1722279819940,1.53666342,3313.3,3312.9,3.01849]
[1722279820177,1.69395502,3313.3,3312.9,3.01849]
[1722279820383,3.1572916,3313.3,3312.9,3.01849]
[1722279820563,0.1572916,3313.3,3312.9,3.01849]
[1722279821340,1.53655172,3313.2,3312.9,3.01849]
[1722279821541,0.16938433,3313.1,3312.9,3.01849]
[1722279821962,0.1572916,3313.3,3312.9,3.01849]
[1722279822178,1.53660985,3313.2,3312.9,3.01849]
[1722279822494,0.1572916,3313.3,3312.9,3.01849]
[1722279822692,1.53657776,3313.2,3312.7,3.01862]
[1722279823190,1.53657776,3313.2,3312.8,3.01853]
[1722279823402,0.16938694,3313.1,3312.7,3.01868]
[1722279823894,0.1572916,3313.3,3312.8,3.01859]
[1722279824100,1.53659885,3313.2,3312.8,3.01859]
[1722279824701,1.53659885,3313.2,3312.6,3.01875]
[1722279826300,4.55482885,3313.2,3312.4,6.03781]
[1722279826603,1.53668495,3313.1,3312.5,3.01881]
[1722279826904,0.61754316,3313.2,3312.5,3.01881]
[1722279827068,1.53669469,3313.1,3312.5,3.01881]
[1722279827896,0.61754316,3313.2,3312.5,3.01881]
[1722279828081,1.53669184,3313.1,3312.5,3.01881]
[1722279828278,0.2154235,3313.0,3312.5,3.01881]
[1722279828482,0.61754316,3313.2,3312.5,3.01881]
[1722279828670,1.53660635,3313.1,3312.5,3.01881]
[1722279829077,1.53660635,3313.1,3312.4,3.01889]
[1722279829078,1.53660635,3313.1,3312.6,3.01876]
[1722279831189,0.61754316,3313.2,3312.3,3.01899]
[1722279831395,1.53660653,3313.1,3312.9,3.01848]
[1722279831725,5.33458,3313.6,3312.8,3.0185]
[1722279831942,5.33458,3313.6,3312.4,2.3122]
[1722279831943,1.53657301,3313.5,3312.5,0.06036841]
[1722279832114,1.53657301,3313.5,3312.4,5.3311]
[1722279832115,1.53657301,3313.5,3313.1,3.01831]
[1722279832309,1.53657301,3313.4,3313.1,3.01831]
[1722279832508,3.01769,3313.8,3313.1,3.01831]
[1722279832509,1.53657301,3313.3,3313.1,3.01831]
[1722279832706,3.01769,3313.8,3312.8,3.01856]
[1722279832908,4.83826127,3313.7,3312.9,3.01843]
[1722279833149,1.53649227,3313.6,3312.9,3.01843]
[1722279833469,4.55441227,3313.6,3312.8,3.01852]
[1722279833621,1.53649227,3313.5,3312.8,3.01852]
[1722279833945,0.45544123,3313.4,3313.0,3.01841]
[1722279834124,1.53649227,3313.3,3313.0,3.01841]
[1722279834329,1.53649582,3313.2,3313.0,3.01841]
[1722279834531,6.319539,3313.7,3313.0,3.01841]
[1722279834852,1.5364961,3313.6,3313.3,3.01813]
[1722279835140,2.02032261,3313.6,3313.3,3.01813]
[1722279835350,1.5364961,3313.5,3313.3,3.01813]
[1722279835499,0.301769,3313.7,3313.4,3.01803]
[1722279835693,1.53636112,3313.6,3313.4,3.01803]
[1722279835893,1.53636112,3313.6,3313.5,3.01795]
[1722279836548,5.49646,3314.4,3313.7,3.01773]
[1722279836843,2.8228283,3314.2,3313.7,3.01773]
[1722279837047,2.8228283,3314.2,3313.5,3.01795]
[1722279837048,1.5361823,3314.1,3313.8,3.01767]
[1722279837955,1.5361823,3314.1,3313.5,3.01795]
[1722279838157,1.5361823,3314.1,3313.6,0.06035339]
[1722279838366,2.4793,3314.4,3314.0,3.0175]
[1722279838578,1.53604856,3314.3,3314.2,3.01731]
[1722279838805,1.53604856,3314.3,3313.2,3.0]
[1722279838806,7.37,3315.0,3314.4,3.01711]
[1722279838998,1.53594157,3314.9,3314.6,3.01694]
[1722279839177,1.53594157,3314.8,3314.5,3.01698]
[1722279839361,1.53594157,3314.7,3314.5,3.01698]
[1722279839612,2.3567,3315.2,3314.6,3.01695]
[1722279839776,2.3567,3315.2,3314.5,3.01698]
[1722279839777,1.53580591,3315.1,3314.5,3.01698]
[1722279839961,1.53580591,3315.1,3314.6,3.01689]
[1722279840387,1.5357473,3315.0,3314.4,3.01704]
[1722279840609,1.5357473,3314.9,3314.4,3.01704]
[1722279840821,1.5357473,3314.9,3314.2,3.01731]
[1722279841039,1.5357473,3314.9,3314.0,3.01746]
[1722279841243,2.27,3314.5,3313.8,3.01765]
[1722279841515,2.0644433,3314.4,3313.6,3.01786]
[1722279841725,4.5529773,3314.3,3313.6,3.01786]
[1722279841935,4.5530773,3314.2,3313.5,3.01794]
[1722279842239,1.5357473,3314.1,3313.7,3.0177]
[1722279842395,1.5357473,3314.0,3313.7,3.0177]
[1722279842714,1.5357473,3313.9,3313.8,3.01768]
[1722279842889,1.53611375,3314.3,3313.9,3.01753]
[1722279843075,1.68972513,3314.2,3313.9,3.01753]
[1722279843271,1.53611375,3314.1,3313.9,3.01753]